bitfinex-derivatives/quotes_ETHF0:USTF0_20260207
["timestamp","ask_amount","ask_price","bid_price","bid_amount"]
[1770480419779,1.10192,2089.3,2085.9,11.00057575]
[1770480420079,1.88455396,2088.1,2085.9,11.00057575]
[1770480420281,0.2398,2087.2,2084.9,11.00057575]
[1770480420583,1.1023,2088.6,2084.9,11.00057575]
[1770480420584,0.23953,2089.5,2086.1,11.00057575]
[1770480420884,0.23942,2090.4,2087.0,11.24038575]
[1770480421079,0.23947,2090.0,2087.0,11.00057575]
[1770480421386,0.23971,2087.9,2087.1,4.79674922]
[1770480421684,0.00472109,2087.9,2087.1,1.89e-06]
[1770480421878,0.23986,2086.6,2084.3,11.00057575]
[1770480422083,6.82592518,2086.7,2083.6,11.00057575]
[1770480422279,6.68543219,2086.4,2083.8,11.00057575]
[1770480422589,0.23988,2086.4,2083.8,11.00057575]
[1770480422779,6.68543219,2088.2,2084.0,1.10472]
[1770480423085,3.10865277,2087.2,2084.5,11.00057575]
[1770480423277,0.23989,2086.4,2084.5,11.00057575]
[1770480423478,1.10388,2085.6,2084.0,0.0048697]
[1770480423678,0.24006,2084.9,2082.8,11.00057575]
[1770480424184,0.24011,2084.4,2081.5,11.00057575]
[1770480424491,0.24014,2084.2,2082.0,11.00057575]
[1770480424679,0.24017,2083.9,2082.0,0.00470756]
[1770480424885,0.24029,2082.9,2082.0,0.00470756]
[1770480425086,0.2403,2082.8,2080.7,11.00057575]
[1770480425281,0.24019,2083.7,2080.7,11.00057575]
[1770480425582,0.23986,2086.6,2082.4,12.10614575]
[1770480425784,0.23974,2087.6,2083.6,11.00057575]
[1770480425989,3.10865277,2087.0,2084.4,11.27384081]
[1770480426185,1.10261,2088.0,2084.7,11.27384081]
[1770480426388,1.10222,2088.8,2084.7,11.27384081]
[1770480426583,0.23972,2087.8,2084.8,5.01493932]
[1770480426782,3.10865277,2088.5,2085.3,11.51383081]
[1770480426978,6.82485392,2088.3,2085.3,11.27384081]
[1770480427190,3.10865277,2088.6,2086.2,11.27384081]
[1770480427397,0.23943,2090.3,2086.7,11.51368081]
[1770480427594,0.23943,2090.3,2086.9,11.51365081]
[1770480427891,0.18519251,2090.6,2088.3,11.27384081]
[1770480428081,0.23919,2092.4,2089.0,11.27384081]
[1770480428483,0.23921,2092.2,2089.2,11.27384081]
[1770480428784,0.23946,2090.1,2089.0,0.00346678]
[1770480428985,0.23954,2089.4,2086.6,11.27384081]
[1770480429185,6.55659933,2089.8,2086.6,11.27384081]
[1770480429186,0.23957,2089.1,2086.6,11.27384081]
[1770480429388,0.2396,2088.9,2086.7,5.39914532]
[1770480429590,0.51702,2089.3,2086.6,11.27384081]
[1770480429785,0.51702,2089.3,2087.4,12.37674081]
[1770480430086,0.23936,2091.0,2088.3,11.27384081]
[1770480430290,0.23955,2089.3,2087.5,5.01374731]
[1770480430486,0.2396,2088.9,2087.4,0.00473692]
[1770480430794,0.23965,2088.4,2085.9,11.55066449]
[1770480430988,0.23965,2088.4,2083.3,1.10508]
[1770480430989,6.93416464,2089.8,2086.1,11.55066449]
[1770480431188,0.2394,2090.6,2087.1,11.55066449]
[1770480431495,0.23947,2090.0,2087.1,11.55066449]
[1770480431790,8.02367675,2089.4,2087.2,5.24559481]
[1770480431993,0.00529969,2090.0,2087.1,0.00504561]
[1770480431994,1.10214,2088.9,2087.1,0.00504561]
[1770480432181,0.00529969,2090.0,2087.1,5.61e-06]
[1770480432182,6.92176675,2088.0,2087.1,5.61e-06]
[1770480432387,0.23974,2087.6,2084.9,11.55066449]
[1770480432584,0.23977,2087.3,2084.9,11.55066449]
[1770480432802,6.96198029,2090.2,2086.2,0.2399]
[1770480433085,0.23944,2090.3,2085.8,1.10377]
[1770480433086,0.23952,2089.6,2086.9,11.55066449]
[1770480433292,1.10218,2088.8,2086.9,11.55616114]
[1770480433484,1.10218,2088.8,2086.9,6.65e-06]
[1770480433682,0.23977,2087.4,2086.9,6.65e-06]
[1770480433984,1.10324,2086.8,2084.1,11.55066449]
[1770480434185,1.10295,2087.4,2083.1,11.55066449]
[1770480434494,0.23974,2087.6,2084.3,11.55066449]
[1770480434791,0.23977,2087.4,2084.6,11.55066449]
[1770480435185,0.00429445,2087.6,2085.7,11.55066449]
[1770480435382,0.23958,2089.1,2086.2,11.55066449]
[1770480435690,0.23964,2088.5,2086.2,11.55066449]
[1770480435996,0.23977,2087.3,2085.6,5.3220015]
[1770480436191,1.1024,2088.4,2085.7,11.55066449]
[1770480436396,0.23975,2087.5,2085.7,11.55417856]
[1770480436692,1.10706348,2088.4,2085.7,11.55417856]
[1770480436896,0.23949,2089.8,2086.2,0.2399]
[1770480437194,0.23949,2089.8,2086.7,11.55066449]
[1770480437399,1.10124,2090.6,2087.0,11.55066449]
[1770480437693,1.10124,2090.6,2086.9,0.23982]
[1770480437694,0.23974,2087.6,2086.8,4.72791745]
[1770480437890,1.10255,2088.1,2085.5,11.55066449]
[1770480438090,0.23985,2086.7,2084.8,11.55066449]
[1770480438285,0.23985,2086.7,2082.8,1.10532]
[1770480438286,0.23993,2086.0,2084.1,11.55066449]
[1770480438488,0.48499,2086.6,2084.1,11.55066449]
[1770480438797,0.23984,2086.8,2084.2,11.55066449]
[1770480438992,0.23976,2087.5,2084.2,11.55066449]
[1770480439294,1.10319,2086.9,2084.4,11.55066449]
[1770480439489,1.10367,2086.0,2084.2,0.00462148]
[1770480439689,0.24002,2085.2,2084.2,0.00462148]
[1770480439888,0.24003,2085.1,2082.9,11.55066449]
[1770480440086,4.72791745,2085.9,2083.6,11.55066449]
[1770480440387,0.23972,2087.8,2085.1,11.79068449]
[1770480440591,0.2396,2088.8,2085.5,0.23997]
[1770480440897,0.23957,2089.1,2086.4,11.55066449]
[1770480441096,6.80334414,2089.6,2086.4,11.55066449]
[1770480441097,0.23964,2088.5,2086.4,11.55066449]
[1770480441288,1.10292,2087.4,2085.5,0.00391999]
[1770480441489,1.10266,2087.9,2085.5,11.55458448]
[1770480441696,0.23976,2087.5,2085.5,11.55458448]
[1770480441996,0.12459141,2087.3,2085.5,11.55458448]
[1770480442190,0.00420554,2087.3,2085.5,11.55458448]
[1770480442395,0.00420554,2087.3,2085.7,11.55066449]
[1770480442597,5.21290745,2087.2,2085.5,11.55458448]
[1770480442783,4.72662325,2086.6,2085.5,11.55458448]
[1770480443005,5.45269745,2087.2,2085.5,11.55458448]
[1770480443006,1.10304,2087.2,2085.5,0.00391999]
[1770480443294,3.46458029,2086.4,2083.0,11.55066449]
[1770480443492,0.24003,2085.1,2083.0,11.55066449]
[1770480443691,0.10002375,2086.5,2084.1,11.55066449]
[1770480443890,0.23991,2086.2,2084.1,11.55066449]
[1770480444086,5.1128837,2087.1,2084.9,11.55066449]
[1770480444298,0.23963,2088.6,2085.9,11.55066449]
[1770480444493,0.23955,2089.3,2086.2,11.55066449]
[1770480444695,0.23942,2090.4,2087.3,11.79043449]
[1770480444896,0.23945,2090.1,2087.3,11.79043449]
[1770480445090,0.23945,2090.1,2087.5,11.55066449]
[1770480445298,5.01368619,2089.7,2087.7,11.55066449]
[1770480445594,0.00468281,2090.1,2088.6,11.55066449]
[1770480445793,0.2395,2089.7,2087.9,11.55066449]
[1770480445992,0.00468281,2090.1,2087.5,11.55517959]
[1770480445993,0.23947,2090.0,2087.5,11.55517959]
[1770480446193,0.2396,2088.9,2087.5,0.0045151]
[1770480446392,7.16741598,2090.0,2087.5,0.0045151]
[1770480446592,0.00468281,2090.1,2088.2,11.55066449]
[1770480446792,0.23941,2090.5,2088.0,11.55066449]
[1770480446991,5.21290745,2089.9,2088.0,11.55066449]
[1770480447294,2.15372979,2090.1,2087.5,11.55517959]
[1770480447497,5.21290745,2090.4,2087.5,11.55517959]
[1770480447691,2.2031,2090.0,2088.1,5.20066268]
[1770480447893,0.23949,2089.8,2087.5,11.55517959]
[1770480448295,0.23967,2088.2,2085.7,11.55066449]
[1770480448488,2.13758007,2088.8,2085.7,11.55066449]
[1770480448489,0.23968,2088.1,2085.7,11.55066449]
[1770480448689,2.13758007,2087.8,2085.2,2.35]
[1770480448892,0.2398,2087.1,2085.2,11.55066449]
[1770480449092,2.13758007,2087.3,2084.4,11.55066449]
[1770480449293,0.00422697,2087.3,2085.3,5.05644234]
[1770480449490,5.21290745,2087.2,2085.4,11.55066449]
[1770480449897,2.13758007,2089.0,2085.9,11.55066449]
[1770480450102,0.23964,2088.5,2085.9,11.55066449]
[1770480450290,5.00355529,2088.9,2086.3,11.55066449]
[1770480450501,2.19176643,2091.0,2087.5,11.55066449]
[1770480450695,2.62878156,2089.7,2087.7,11.55066449]
[1770480451001,1.10774062,2089.7,2087.7,11.55629546]
[1770480451199,1.10774062,2089.7,2087.0,5.31151673]
[1770480451200,0.2397,2088.0,2087.0,4.82859673]
[1770480451494,1.10182,2089.5,2084.4,2.69762534]
[1770480451495,1.10266,2087.9,2084.5,11.69205737]
[1770480451699,0.23976,2087.5,2084.9,11.69205737]
[1770480451891,0.2398,2087.1,2084.9,11.69205737]
[1770480452195,0.00407,2087.1,2085.1,11.69205737]
[1770480452398,2.62878156,2087.0,2085.1,11.69205737]
[1770480452696,0.00407,2087.1,2085.3,11.68162217]
[1770480452897,1.1024,2088.4,2085.6,11.68162217]
[1770480453102,5.25973004,2087.0,2085.6,11.68162217]
[1770480453295,0.2399,2086.2,2084.9,11.55488035]
[1770480453600,0.50466041,2087.3,2084.9,11.55488035]
[1770480453796,5.01991004,2086.9,2084.9,11.55488035]
[1770480453991,5.02565822,2087.3,2084.9,11.55488035]
[1770480454197,0.00574818,2087.3,2085.3,11.55066449]
[1770480454591,0.00574818,2087.3,2082.2,2.70470851]
[1770480454592,0.5930704,2085.9,2082.2,2.70470851]
[1770480454800,1.10434,2084.8,2082.4,11.55066449]
[1770480454996,0.5930704,2085.0,2082.1,11.735857]
[1770480455196,0.24002,2085.2,2082.6,11.55066449]
[1770480455396,0.5930704,2085.6,2082.6,11.55066449]
[1770480455600,4.8636667,2084.9,2082.6,11.55066449]
[1770480455801,5.20400658,2085.1,2082.6,11.55623044]
[1770480456001,4.8636667,2085.4,2082.6,11.55623044]
[1770480456207,0.24002,2085.2,2082.6,11.55623044]
[1770480456503,46.39543668,2083.2,2082.2,11.30240055]
[1770480456705,0.24012,2084.4,2082.2,11.30240055]
[1770480457306,4.50625926,2084.3,2082.2,11.30240055]
[1770480457606,0.00523053,2084.3,2082.4,11.30240055]
[1770480457808,0.24536053,2084.3,2082.4,11.30240055]
[1770480458013,5.13196787,2084.3,2082.4,11.30240055]
[1770480458202,0.24019,2083.7,2082.4,11.30240055]
[1770480458399,5.13196787,2084.3,2082.2,11.34737331]
[1770480458601,4.94093594,2083.6,2082.2,11.34737331]
[1770480458803,2.92565953,2083.6,2082.2,11.34737331]
[1770480459003,5.12673734,2084.2,2082.4,10.53787077]
[1770480459205,0.71509209,2086.2,2082.7,10.53787077]
[1770480459403,0.23994,2085.9,2082.7,10.53787077]
[1770480459608,9.02245949,2087.6,2083.9,10.53787077]
[1770480459915,0.23991,2086.1,2084.3,10.53787077]
[1770480460208,8.78271949,2085.9,2084.3,0.00567571]
[1770480460406,0.24003,2085.1,2083.0,10.53787077]
[1770480460601,0.24011,2084.4,2082.2,10.53787077]
[1770480460806,0.24002,2085.2,2082.4,10.53787077]
[1770480461013,0.24002,2085.2,2082.8,5.52637986]
[1770480461014,0.24009,2084.6,2082.8,5.52637986]
[1770480461208,8.77298467,2086.1,2082.9,10.53787077]
[1770480461411,0.24008,2084.7,2082.9,10.54357247]
[1770480461614,1.10421,2085.0,2082.9,10.54357247]
[1770480461911,8.77298467,2085.0,2082.9,1.7e-06]
[1770480462107,0.24016,2084.0,2082.9,1.7e-06]
[1770480462502,0.24019,2083.7,2082.9,1.7e-06]
[1770480463106,0.24021,2083.5,2081.6,10.53787077]
[1770480463301,8.63180054,2084.0,2081.6,10.53787077]
[1770480463502,1.10441,2084.6,2082.1,10.72306328]
[1770480463712,0.2402,2083.6,2082.1,10.72306328]
[1770480464101,0.24023,2083.4,2082.1,10.72654911]
[1770480464509,0.24023,2083.4,2082.1,0.18867834]
[1770480464712,0.00356121,2083.6,2082.1,0.18867834]
[1770480464912,0.00356121,2083.6,2082.1,10.72654911]
[1770480465401,0.24008,2084.7,2082.3,10.53787077]
[1770480465607,0.24016,2084.0,2082.3,10.53787077]
[1770480465810,0.24017,2083.9,2082.3,10.53787077]
[1770480466406,0.00413617,2083.9,2082.3,10.53787077]
[1770480466806,8.51868015,2083.0,2080.9,10.53787077]
[1770480467016,8.51868015,2083.8,2081.4,10.53787077]
[1770480467211,8.51868015,2083.8,2081.4,10.77832077]
[1770480467405,0.00413617,2083.9,2081.8,10.53787077]
[1770480467712,0.24018,2083.8,2081.8,10.54169351]
[1770480467904,0.00413617,2083.9,2081.8,10.54169351]
[1770480467905,0.24024,2083.3,2081.8,10.54169351]
[1770480468103,8.52281632,2083.9,2081.8,10.54169351]
[1770480468306,0.00413617,2083.9,2082.1,10.77824077]
[1770480468504,0.00413617,2083.9,2082.4,10.53787077]
[1770480468704,0.24006,2084.9,2082.7,10.53787077]
[1770480468908,0.24016,2084.0,2082.1,10.53787077]
[1770480469109,0.24019,2083.7,2082.1,10.53787077]
[1770480469306,0.24007,2084.8,2082.1,10.53787077]
[1770480469504,0.24001,2085.3,2082.9,10.53787077]
[1770480469717,0.24005,2084.9,2083.1,10.53787077]
[1770480470016,0.24017,2083.9,2082.5,10.53787077]
[1770480470210,0.24017,2083.9,2081.8,0.00382274]
[1770480470211,8.79388859,2083.7,2081.8,10.54169351]
[1770480470416,0.00415062,2083.7,2081.8,10.54169351]
[1770480470615,0.24008,2084.7,2082.5,10.53787077]
[1770480470917,8.45380362,2085.5,2082.7,10.53787077]
[1770480471113,8.69379362,2085.5,2082.7,10.53787077]
[1770480471312,8.69788424,2086.0,2083.0,10.53787077]
[1770480471505,8.45795424,2086.6,2084.0,10.53787077]
[1770480471706,0.23998,2085.6,2084.0,10.54184522]
[1770480471906,0.23999,2085.5,2084.0,10.54184522]
[1770480472214,8.45795424,2086.3,2084.0,10.54184522]
[1770480472215,0.23989,2086.3,2084.0,10.54184522]
[1770480472411,0.23988,2086.4,2084.3,10.53787077]
[1770480472614,0.00383049,2086.6,2084.3,10.53787077]
[1770480472809,9.15378333,2085.7,2084.0,0.00397445]
[1770480473017,0.24004,2085.0,2084.0,0.00397445]
[1770480473215,0.24006,2084.8,2082.8,10.53787077]
[1770480473417,0.00443225,2085.0,2082.8,10.53787077]
[1770480473819,0.24447225,2085.0,2082.8,10.53787077]
[1770480474121,0.23986,2086.6,2083.9,0.24016]
[1770480474322,9.15424113,2088.0,2084.9,10.53787077]
[1770480474619,0.23969,2088.1,2085.6,10.53787077]
[1770480474921,0.23975,2087.5,2085.6,10.53787077]
[1770480475111,0.23979,2087.2,2085.6,10.53787077]
[1770480475312,0.005295,2087.5,2085.6,10.54188615]
[1770480475516,0.2398,2087.1,2085.6,0.00401538]
[1770480476019,0.005295,2087.5,2085.6,10.54188615]
[1770480476618,0.23982,2087.0,2085.6,10.54188615]
[1770480477017,0.005295,2087.5,2085.6,10.54188615]
[1770480477419,0.23963,2088.6,2086.4,10.53787077]
[1770480477610,0.23965,2088.4,2086.4,10.53787077]
[1770480477815,8.0707064,2089.0,2086.4,10.53787077]
[1770480478022,0.23968,2088.2,2086.4,10.53787077]
[1770480478316,8.0707064,2088.1,2085.7,10.53787077]
[1770480478518,0.2399,2086.3,2084.5,10.53787077]
[1770480478719,8.36315161,2087.4,2084.5,10.53787077]
[1770480479115,0.23976,2087.5,2084.8,10.53787077]
[1770480479421,8.36315161,2087.1,2085.1,10.53787077]
[1770480479617,0.23989,2086.3,2085.1,10.54307878]
[1770480479817,8.60305161,2086.2,2085.1,0.00520801]
[1770480480015,0.23993,2086.0,2085.1,8.01e-06]
[1770480480215,8.36315161,2086.2,2083.9,10.53787077]
[1770480480411,1.10326,2086.8,2083.3,10.53787077]
[1770480480619,0.23993,2086.0,2083.6,10.53787077]
[1770480480817,8.32326991,2086.0,2083.6,10.53787077]
[1770480481118,8.32326991,2085.2,2083.0,10.53787077]
[1770480481320,0.00483803,2085.2,2083.0,10.54385407]
[1770480481510,8.32326991,2084.4,2083.0,0.0059833]
[1770480481714,8.32810794,2085.2,2083.0,10.54385407]
[1770480481913,0.24012,2084.4,2083.0,0.0059833]
[1770480482115,9.42756991,2084.8,2083.0,0.0059833]
[1770480482418,8.72494041,2083.0,2080.6,10.53787077]
[1770480482623,8.96523041,2082.8,2080.6,10.53787077]
[1770480482922,8.72494041,2083.5,2081.0,10.77836077]
[1770480483122,8.72494041,2084.1,2081.2,10.53787077]
[1770480483418,8.72992622,2083.5,2081.4,10.53787077]
[1770480483613,8.96517041,2083.3,2081.4,10.53787077]
[1770480483817,8.96517041,2083.3,2081.0,0.00597343]
[1770480483818,8.96522041,2082.9,2081.0,0.00597343]
[1770480484014,8.72494041,2082.9,2081.0,0.00597343]
[1770480484213,8.72494041,2083.3,2081.0,10.5438442]
[1770480484417,8.80514996,2082.5,2081.0,0.00597343]
[1770480484619,0.24022,2083.4,2081.0,10.5438442]
[1770480484814,8.80514996,2083.3,2081.0,0.00597343]
[1770480485019,0.2403,2082.8,2081.0,10.5438442]
[1770480485420,8.80514996,2083.4,2081.0,10.5438442]
[1770480485612,0.24026,2083.1,2081.0,10.5438442]
[1770480485814,0.00498581,2083.5,2081.0,10.5438442]
[1770480486025,0.2401,2084.5,2082.0,10.92108129]
[1770480486217,8.78921628,2084.5,2082.2,10.92108129]
[1770480486625,0.24022,2083.5,2081.6,10.92108129]
[1770480486926,0.24025,2083.2,2081.6,10.92108129]
[1770480487119,8.89619925,2082.9,2081.0,10.92705472]
[1770480487520,8.65590925,2082.9,2081.0,0.00597343]
[1770480487724,8.89625925,2082.4,2081.0,0.00597343]
[1770480488031,0.24037,2082.2,2081.0,0.00597343]
[1770480488213,0.24037,2082.2,2080.3,10.92108129]
[1770480488214,8.65590925,2082.4,2080.3,10.92108129]
[1770480488416,8.66384938,2082.0,2079.2,10.92108129]
[1770480488621,0.24044,2081.6,2079.2,10.92108129]
[1770480488823,8.90432938,2081.2,2079.2,10.92108129]
[1770480489122,8.66384938,2080.8,2079.2,0.00584941]
[1770480489324,0.0034499,2081.2,2078.1,0.01127038]
[1770480489325,0.24067,2079.6,2078.1,0.01127038]
[1770480489519,8.90451938,2079.5,2077.0,11.1062738]
[1770480489728,8.66384938,2079.3,2077.0,11.1062738]
[1770480490121,0.24056,2080.5,2077.0,11.1062738]
[1770480490321,8.6689031,2080.5,2077.4,1.10822]
[1770480490519,8.6689031,2080.5,2078.4,10.92108129]
[1770480490520,8.83032281,2080.5,2078.4,10.92108129]
[1770480491024,8.84842742,2079.7,2077.1,11.2497637]
[1770480491527,8.84842742,2079.7,2077.1,11.4907137]
[1770480491727,0.00505372,2080.5,2077.7,11.2497637]
[1770480492029,8.85266841,2079.9,2077.7,11.2497637]
[1770480492226,8.85772213,2080.5,2077.7,11.2497637]
[1770480492427,0.00505372,2080.5,2077.9,11.4906137]
[1770480492729,0.00505372,2080.5,2078.3,11.4905737]
[1770480492935,0.24561372,2080.5,2078.3,11.2497637]
[1770480493124,9.06712456,2080.3,2078.3,11.2497637]
[1770480493320,8.82653456,2080.3,2078.3,11.2497637]
[1770480493525,8.82653456,2080.3,2077.1,11.2497637]
[1770480493727,0.2406,2080.2,2077.4,11.2497637]
[1770480493926,8.82653456,2078.7,2076.2,11.2497637]
[1770480494123,8.82653456,2078.4,2075.0,11.2497637]
[1770480494321,8.67221377,2077.6,2075.0,11.2497637]
[1770480494520,8.91323377,2076.6,2074.1,11.2497637]
[1770480494723,8.91331377,2075.9,2072.5,7.82159527]
[1770480494920,0.24101,2076.6,2073.5,11.2497637]
[1770480495125,8.67221377,2076.1,2073.6,11.2497637]
[1770480495320,8.67221377,2075.9,2073.6,11.2497637]
[1770480495729,8.67221377,2076.4,2073.6,11.2497637]
[1770480495924,8.67221377,2075.6,2073.5,0.00547986]
[1770480496124,8.91348391,2074.3,2071.8,11.2497637]
[1770480496425,8.67220391,2074.3,2071.8,11.2497637]
[1770480496630,8.73101272,2073.7,2071.5,5.14157504]
[1770480496826,8.73101272,2073.1,2071.4,0.18519251]
[1770480497128,0.00469433,2073.1,2071.4,11.43997219]
[1770480497626,8.73101272,2074.6,2071.6,11.2497637]
[1770480497929,8.97226272,2074.6,2071.6,11.2497637]
[1770480498233,8.73101272,2074.0,2071.6,11.2497637]
[1770480498434,8.82881278,2075.5,2072.1,11.2497637]
[1770480498632,9.07004278,2074.8,2072.1,11.2497637]
[1770480498931,8.82881278,2073.8,2071.4,11.43997219]
[1770480499136,9.07019278,2073.4,2071.4,0.19020849]
[1770480499333,9.07023278,2073.1,2071.4,0.19020849]
[1770480499536,8.88010429,2072.5,2069.4,11.2497637]
[1770480499835,8.88011429,2072.3,2069.7,11.2497637]
[1770480500031,9.74983429,2071.8,2069.7,11.2497637]
[1770480500228,8.63860429,2072.1,2069.7,11.2497637]
[1770480500631,0.00360316,2072.1,2069.9,11.2497637]
[1770480500830,8.43526439,2071.7,2069.7,0.00338729]
[1770480501033,8.43526439,2071.2,2069.7,0.00338729]
[1770480501241,8.43526439,2071.8,2069.7,11.25315099]
[1770480501437,0.00360316,2072.1,2069.7,11.25315099]
[1770480501438,0.00360316,2072.1,2069.7,11.49495099]
[1770480501734,0.00360316,2072.1,2069.9,11.4915537]
[1770480501938,0.00360316,2072.1,2069.9,11.2497637]
[1770480501939,0.24514316,2072.1,2069.9,11.2497637]
[1770480502129,8.43526439,2072.0,2069.9,11.2497637]
[1770480502329,0.2417,2070.7,2068.7,11.2497637]
[1770480502536,0.24183,2069.6,2067.5,11.2497637]
[1770480502836,0.24195,2068.6,2066.8,11.2497637]
[1770480503052,8.45298432,2068.8,2066.8,11.2497637]
[1770480503251,0.24197,2068.4,2066.8,11.2497637]
[1770480503444,8.45298432,2070.0,2066.9,0.24213]
[1770480503646,0.24174,2070.3,2067.8,11.2497637]
[1770480503950,0.24177,2070.1,2067.8,11.2497637]
[1770480504248,0.24167,2071.0,2068.5,11.2497637]
[1770480504455,8.44614283,2070.8,2068.5,11.2497637]
[1770480504643,8.44614283,2070.7,2068.5,11.2497637]
[1770480504844,0.24176,2070.2,2068.5,11.25574769]
[1770480505045,0.00361984,2070.7,2069.1,11.2497637]
[1770480505245,0.24153,2072.1,2069.6,11.2497637]
[1770480505453,0.24157,2071.8,2069.6,11.2497637]
[1770480505752,0.24177,2070.1,2068.6,11.2497637]
[1770480505940,8.44614283,2070.6,2068.6,11.2497637]
[1770480506142,8.44614283,2070.1,2068.5,0.00598399]
[1770480506342,8.42754253,2070.6,2068.5,11.25574769]
[1770480506544,0.24182,2069.7,2068.5,11.25574769]
[1770480506747,8.42327261,2070.4,2068.5,11.25574769]
[1770480506949,0.00426992,2070.6,2068.5,11.25574769]
[1770480507146,0.00426992,2070.6,2068.8,11.2497637]
[1770480507543,8.42327261,2071.8,2068.5,0.00598399]
[1770480507744,0.24161,2071.5,2069.1,11.4916337]
[1770480507943,1.11075,2072.7,2068.5,0.00598399]
[1770480507944,63.6836624,2119.8,2068.6,2.15188884]
[1770480508144,63.6836624,2119.8,830.3,0.30191764]
[1770480508145,9.002,2071.4,2057.6,1.11885]
[1770480508344,0.12972732,2061.6,2056.6,0.09238577]
[1770480508544,0.12972732,2061.6,2052.9,9.15102863]
[1770480508545,0.24269,2062.2,2053.3,1.12124]
[1770480508850,0.2429,2060.5,2054.2,1.12075]
[1770480509047,10.91324462,2058.3,2048.6,1.12381]
[1770480509349,1.11996,2055.7,2044.4,13.16831283]
[1770480509548,7.13008483,2055.0,2044.4,11.2497637]
[1770480509745,1.54838945,2052.2,2042.9,13.16831283]
[1770480509942,1.14248397,2050.5,2039.9,7.037]
[1770480510147,1.12313,2049.9,2044.3,1.12618]
[1770480510347,1.61897044,2048.5,2044.3,0.00618795]
[1770480510547,1.61897044,2047.7,2044.3,0.00618795]
[1770480510746,1.61897044,2047.7,2044.4,5.54139028]
[1770480510945,1.61897044,2047.7,2044.3,0.00618795]
[1770480510946,0.079,2048.4,2044.3,0.00618795]
[1770480511145,1.12305,2050.0,2044.4,5.1026502]
[1770480511354,1.12299,2050.1,2044.5,2.37]
[1770480511547,1.12272,2050.6,2044.4,5.1026502]
[1770480511548,1.12329,2049.6,2044.4,5.1026502]
[1770480511747,1.12252,2051.0,2044.7,11.2497637]
[1770480511947,0.24383,2052.6,2046.1,11.2497637]
[1770480512148,0.00540926,2052.6,2047.3,11.2497637]
[1770480512346,1.12053,2054.6,2048.7,11.2497637]
[1770480512546,0.35506098,2057.7,2050.1,11.52593727]
[1770480512854,1.1188,2057.8,2051.9,11.52593727]
[1770480513046,0.24316,2058.3,2052.9,11.52593727]
[1770480513252,0.00502928,2058.3,2054.0,11.52593727]
[1770480513553,1.11707,2061.0,2054.6,11.52593727]
[1770480513754,1.11636,2062.3,2056.4,11.52593727]
[1770480513951,1.11609,2062.8,2056.7,11.52593727]
[1770480514156,0.35568049,2062.6,2056.7,11.52593727]
[1770480514455,1.1167,2061.7,2057.5,11.70346776]
[1770480514755,1.11695,2061.2,2057.5,11.70346776]
[1770480514951,0.35568049,2062.7,2057.5,11.70346776]
[1770480514952,1.11531,2064.3,2057.9,11.70346776]
[1770480515257,0.19756049,2065.0,2059.4,11.70346776]
[1770480515452,0.19756049,2065.0,2059.8,11.70346776]
[1770480515658,0.35568049,2064.2,2061.1,11.70346776]
[1770480515852,1.11459,2065.6,2061.1,11.70346776]
[1770480516051,1.11459,2065.6,2061.1,11.70964604]
[1770480516052,1.11587,2063.2,2061.1,11.70964604]
[1770480516355,0.24246,2064.2,2056.6,1.31696049]
[1770480516356,2.375,2065.5,2056.7,11.75265416]
[1770480516549,1.48714795,2059.0,2053.0,1.12139]
[1770480516755,1.12124,2053.3,2046.7,1.12482]
[1770480516950,2.375,2050.3,2037.7,13.16831283]
[1770480517151,0.20675578,2049.8,2038.0,2.25932]
[1770480517458,0.20675578,2049.8,2034.2,2.375]
[1770480517459,1.12575,2045.1,2038.4,11.75265415]
[1770480517756,0.20675578,2049.8,2038.1,14.96056]
[1770480517757,29.1717435,2059.9,2049.5,13.1858532]
[1770480518054,10.63190373,2069.3,2057.6,11.0805864]
[1770480518257,9.27637764,2074.1,2061.2,1.11694]
[1770480518454,16.62326926,2079.5,2066.8,11.0805864]
[1770480518658,10.63190373,2078.0,2066.9,6.272]
[1770480518850,10.98758422,2072.0,2067.4,1.11358]
[1770480519048,10.98758422,2072.0,2066.8,1.35393783]
[1770480519049,3.253034,2072.0,2066.7,1.11394]
[1770480519255,0.07926122,2075.2,2062.8,11.0805864]
[1770480519450,10.63190373,2069.8,2062.8,11.0805864]
[1770480519757,10.63190373,2071.0,2064.2,1.11532]
[1770480519960,10.63190373,2070.8,2065.8,11.0805864]
[1770480520151,0.00505651,2071.0,2065.9,15.86056897]
[1770480520356,10.63190373,2066.6,2058.7,11.69779588]
[1770480520553,1.11511,2064.6,2057.0,1.1192]
[1770480520856,1.11511,2064.6,2056.6,1.31698049]
[1770480520857,10.63190373,2058.3,2056.7,5.47545824]
[1770480521056,10.63190373,2059.4,2056.7,5.30995705]
[1770480521256,10.63190373,2057.6,2052.6,1.12161]
[1770480521463,10.63190373,2055.1,2050.2,1.12291]
[1770480521653,1.12084,2054.1,2048.9,10.57954588]
[1770480521859,10.63190373,2052.8,2048.9,1.12363]
[1770480522161,10.63190373,2053.4,2051.5,5.29444247]
[1770480522365,10.63728041,2053.4,2051.5,0.00613339]
[1770480522562,0.20254394,2052.7,2051.6,0.00613339]
[1770480522857,1.11776,2059.7,2055.1,9.52350718]
[1770480523052,1.11586,2063.3,2057.4,1.11901]
[1770480523255,0.24253,2063.6,2058.7,9.52350718]
[1770480523256,1.11565,2063.6,2058.7,9.52350718]
[1770480523456,0.34207143,2061.8,2058.7,9.52350718]
[1770480523658,0.00431937,2061.8,2058.7,9.52806729]
[1770480523855,0.00431937,2061.8,2059.3,1.11797]
[1770480524055,1.11581,2063.3,2058.8,0.34207143]
[1770480524253,10.63190373,2060.9,2059.4,5.13865966]
[1770480524459,10.63190373,2059.6,2054.9,9.95940026]
[1770480524656,10.63190373,2059.6,2054.0,1.12086]
[1770480524657,10.63190373,2058.3,2054.0,1.12086]
[1770480524852,10.63190373,2058.3,2055.0,5.13865966]
[1770480525064,10.63190373,2057.5,2052.9,1.12146]
[1770480525266,10.63190373,2057.5,2052.2,1.36567]
[1770480525267,10.63190373,2057.0,2053.0,4.50940829]
[1770480525559,0.00579901,2057.0,2054.7,1.12046]
[1770480525760,10.63190373,2060.6,2057.0,1.1192]
[1770480525962,10.63190373,2060.6,2057.3,9.95940026]
[1770480526260,10.63190373,2063.8,2059.4,9.95940026]
[1770480526762,0.00619026,2063.8,2062.1,8.23434239]
[1770480526964,0.00619026,2063.8,2061.0,1.11701]
[1770480526965,1.11586,2063.2,2060.3,8.23434239]
[1770480527163,10.63190373,2062.1,2060.3,8.23434239]
[1770480527464,11.75265416,2059.1,2055.9,5.29705095]
[1770480527667,11.75265416,2059.1,2050.2,2.38]
[1770480527668,11.75265416,2058.5,2052.6,1.36543]
[1770480527859,11.75265416,2056.3,2051.5,6.41925095]